bitfinex-derivatives/quotes_BTCF0:USTF0_20251216
["timestamp","ask_amount","ask_price","bid_price","bid_amount"]
[1765906754953,0.01469082,87334.0,87333.0,0.34396]
[1765906755348,0.00323802,87334.0,87333.0,0.34396]
[1765906755654,0.00223802,87334.0,87333.0,0.34396]
[1765906755855,0.00323802,87334.0,87333.0,0.34396]
[1765906756055,0.35846082,87334.0,87333.0,0.34396]
[1765906756353,0.35846082,87334.0,87318.0,0.1229047]
[1765906756354,0.3552246,87320.0,87319.0,0.3554147]
[1765906756860,0.42242,87318.0,87307.0,0.3608]
[1765906757054,0.44683522,87318.0,87309.0,0.011456]
[1765906757247,0.44683522,87318.0,87307.0,0.3608]
[1765906757755,0.44683522,87318.0,87302.0,0.7192]
[1765906758459,0.44683522,87318.0,87307.0,0.0114562]
[1765906759156,0.44683522,87318.0,87309.0,0.011456]
[1765906759461,0.44683522,87318.0,87317.0,0.17305173]
[1765906760247,0.44683522,87318.0,87317.0,0.00017173]
[1765906760657,0.44690151,87318.0,87317.0,0.00017173]
[1765906760855,0.44690151,87318.0,87317.0,0.34413173]
[1765906761050,0.36825151,87318.0,87317.0,0.34413173]
[1765906761246,6.629e-05,87318.0,87317.0,0.34413173]
[1765906763746,0.17136629,87318.0,87317.0,0.34413173]
[1765906764058,6.629e-05,87318.0,87317.0,0.34413173]
[1765906765162,0.34383629,87318.0,87317.0,0.00017173]
[1765906765354,0.70463629,87318.0,87317.0,0.00017173]
[1765906765556,0.7290516,87318.0,87317.0,0.00017173]
[1765906769661,0.7290516,87318.0,87317.0,0.17305173]
[1765906770661,0.7290516,87318.0,87317.0,0.00017173]
[1765906771652,0.7290516,87318.0,87317.0,0.17305173]
[1765906771864,0.7290516,87318.0,87317.0,0.00017173]
[1765906774471,0.3414871,87301.0,87300.0,0.3310772]
[1765906774769,0.06189,87311.0,87300.0,0.3310772]
[1765906774770,0.3414858,87311.0,87310.0,0.31958]
[1765906775870,0.33003,87311.0,87310.0,0.31958]
[1765906776161,0.01152119,87318.0,87317.0,0.331035]
[1765906777364,0.17071119,87318.0,87317.0,0.331035]
[1765906777680,0.15925629,87318.0,87317.0,0.331035]
[1765906778471,6.629e-05,87318.0,87317.0,0.331035]
[1765906779165,0.00017173,87319.0,87317.0,0.331035]
[1765906779166,0.00017173,87319.0,87318.0,0.41785]
[1765906779868,0.33020173,87319.0,87318.0,0.41785]
[1765906780465,0.33120173,87319.0,87318.0,0.41785]
[1765906780772,0.16036173,87319.0,87318.0,0.41785]
[1765906781169,0.00117173,87319.0,87318.0,0.41785]
[1765906782876,0.69083,87346.0,87345.0,0.31958]
[1765906783086,0.354506,87346.0,87345.0,0.31958]
[1765906783375,0.354506,87346.0,87336.0,0.31958]
[1765906783376,0.3414824,87337.0,87336.0,0.31958]
[1765906783582,0.33003,87337.0,87336.0,0.31958]
[1765906784359,0.15919,87337.0,87336.0,0.31958]
[1765906784563,0.16019,87337.0,87336.0,0.31958]
[1765906784763,0.002,87337.0,87336.0,0.31958]
[1765906786173,0.33203,87337.0,87336.0,0.31958]
[1765906788277,0.002,87337.0,87336.0,0.31958]
[1765906789676,0.001,87337.0,87336.0,0.31958]
[1765906789875,0.002,87337.0,87336.0,0.31958]
[1765906790280,0.00017173,87345.0,87336.0,0.31958]
[1765906790281,0.00017173,87345.0,87344.0,0.3310314]
[1765906790484,0.3608,87368.0,87344.0,0.3310314]
[1765906790485,0.69083,87362.0,87361.0,0.31958]
[1765906790678,0.7152788,87362.0,87361.0,0.31958]
[1765906791178,0.7267279,87362.0,87361.0,0.31958]
[1765906791383,0.7022791,87362.0,87361.0,0.31958]
[1765906791579,0.7042791,87362.0,87361.0,0.16085]
[1765906791782,0.3414801,87354.0,87353.0,0.31975173]
[1765906793882,0.3454801,87354.0,87353.0,0.31975173]
[1765906795380,0.3454801,87354.0,87353.0,0.00017173]
[1765906795686,0.3454801,87354.0,87353.0,0.31975173]
[1765906795883,0.3434801,87354.0,87353.0,0.31975173]
[1765906796085,0.3454801,87354.0,87353.0,0.31975173]
[1765906797074,0.3434801,87354.0,87353.0,0.31975173]
[1765906797277,0.3454801,87354.0,87353.0,0.31975173]
[1765906797677,0.3434801,87354.0,87353.0,0.31975173]
[1765906797976,0.3454801,87354.0,87353.0,0.31975173]
[1765906798179,0.3454801,87354.0,87353.0,0.33120203]
[1765906798682,0.3434801,87354.0,87353.0,0.33120203]
[1765906798891,0.3454801,87354.0,87353.0,0.33120203]
[1765906799076,0.3454801,87354.0,87353.0,0.31975173]
[1765906799275,0.3454801,87354.0,87353.0,0.00017173]
[1765906799481,0.3434801,87354.0,87353.0,0.00017173]
[1765906799688,0.3434801,87354.0,87327.0,0.6918337]
[1765906799689,0.33003,87328.0,87327.0,0.6918337]
[1765906799884,0.33003,87328.0,87327.0,0.68038]
[1765906800872,0.33003,87328.0,87327.0,0.31958]
[1765906801186,0.0114542,87323.0,87322.0,0.31958]
[1765906801384,0.3424835,87328.0,87327.0,0.31958]
[1765906801587,0.3414846,87320.0,87319.0,0.31975173]
[1765906802293,0.3905046,87320.0,87319.0,0.00017173]
[1765906802587,0.3905046,87320.0,87319.0,0.16102173]
[1765906802779,0.3414846,87320.0,87319.0,0.31975173]
[1765906804181,0.4388346,87320.0,87319.0,0.00017173]
[1765906805182,0.4388346,87320.0,87319.0,0.15843173]
[1765906805381,0.4388346,87320.0,87319.0,0.32395173]
[1765906805588,0.3414846,87320.0,87319.0,0.32395173]
[1765906805990,0.15919,87320.0,87319.0,0.33540643]
[1765906806189,0.31005,87320.0,87319.0,0.33540643]
[1765906806593,0.5219138,87327.0,87326.0,0.32378]
[1765906807094,0.1611138,87327.0,87326.0,0.32378]
[1765906807594,0.14966,87327.0,87326.0,0.32378]
[1765906808186,0.15066,87327.0,87326.0,0.32378]
[1765906808385,0.001,87327.0,87326.0,0.68458]
[1765906808990,0.002,87327.0,87326.0,0.68458]
[1765906809180,0.0114521,87340.0,87335.0,0.32378]
[1765906809582,0.0114521,87340.0,87335.0,0.68458]
[1765906810180,0.3608,87345.0,87335.0,0.68458]
[1765906810181,0.30069173,87336.0,87335.0,0.68458]
[1765906810584,0.30169173,87336.0,87335.0,0.68458]
[1765906811290,0.30052,87329.0,87328.0,0.42217]
[1765906811595,0.30052,87329.0,87328.0,0.32378]
[1765906812399,0.1611129,87333.0,87332.0,0.32378]
[1765906812699,0.0114529,87333.0,87332.0,0.32378]
[1765906813199,0.31214433,87336.0,87335.0,0.32378]
[1765906813894,0.30069173,87336.0,87335.0,0.32378]
[1765906814603,0.00017173,87336.0,87335.0,0.32378]
[1765906815497,0.00117173,87336.0,87335.0,0.32378]
[1765906815700,0.00217173,87336.0,87335.0,0.32378]
[1765906816100,0.00017173,87336.0,87335.0,0.32478]
[1765906816299,0.00017173,87336.0,87335.0,0.32578]
[1765906816998,0.1611113,87346.0,87345.0,0.32378]
[1765906817393,0.14966,87346.0,87345.0,0.32378]
[1765906817594,0.66132,87353.0,87352.0,0.32378]
[1765906817795,0.69742033,87353.0,87352.0,0.32378]
[1765906819094,0.3119713,87345.0,87344.0,0.32395173]
[1765906820204,0.3129713,87345.0,87344.0,0.32395173]
[1765906821393,0.3129713,87345.0,87344.0,0.42234173]
[1765906821593,0.3139713,87345.0,87344.0,0.42234173]
[1765906821792,0.3159713,87345.0,87344.0,0.42234173]
[1765906822195,0.3139713,87345.0,87344.0,0.43379313]
[1765906823807,0.3129713,87345.0,87344.0,0.43379313]
[1765906824009,0.3139713,87345.0,87344.0,0.43379313]
[1765906824604,0.3139713,87345.0,87344.0,0.42234173]
[1765906824800,0.3139713,87345.0,87344.0,0.32395173]
[1765906825002,0.3139713,87345.0,87344.0,0.15843173]
[1765906825401,0.3139713,87345.0,87344.0,0.32395173]
[1765906826510,0.002,87345.0,87344.0,0.33540313]
[1765906827713,0.001,87345.0,87344.0,0.33540313]
[1765906828011,0.002,87345.0,87344.0,0.33540313]
[1765906828206,0.3139713,87345.0,87344.0,0.32395173]
[1765906829000,0.3139713,87345.0,87344.0,0.00017173]
[1765906829904,0.3119741,87324.0,87323.0,0.3608]
[1765906830108,0.3119741,87324.0,87317.0,0.06174629]
[1765906830109,0.3119749,87318.0,87317.0,0.32378]
[1765906830511,0.3119753,87315.0,87314.0,0.51906]
[1765906830911,0.3119753,87315.0,87314.0,0.68458]
[1765906831206,0.14966,87315.0,87314.0,0.68458]
[1765906831606,0.3119762,87308.0,87306.0,0.06191802]
[1765906831911,0.30052,87307.0,87306.0,0.32395173]
[1765906832209,0.3608,87318.0,87310.0,0.3352359]
[1765906832210,0.14966,87311.0,87310.0,0.3352359]
[1765906832802,0.66132,87318.0,87317.0,0.32378]
[1765906833011,0.30069173,87323.0,87322.0,0.32378]
[1765906833811,0.00017173,87323.0,87322.0,0.32378]
[1765906834711,0.00017173,87323.0,87322.0,0.32478]
[1765906835610,0.15157173,87323.0,87322.0,0.32478]
[1765906836018,0.29810173,87323.0,87322.0,0.32478]
[1765906839818,0.00017173,87323.0,87322.0,0.32478]
[1765906840409,0.6701822,87339.0,87338.0,0.30103]
[1765906840604,0.45558654,87350.0,87338.0,0.30103]
[1765906840605,0.0114507,87350.0,87349.0,0.15372]
[1765906840815,0.3093807,87350.0,87349.0,0.30103]
[1765906841017,0.33407365,87350.0,87349.0,0.30103]
[1765906842221,0.29793,87345.0,87344.0,0.30103]
[1765906842523,0.33407206,87345.0,87344.0,0.14731]
[1765906843112,0.3093813,87345.0,87344.0,0.30103]
[1765906843310,0.33607255,87345.0,87344.0,0.30103]
[1765906843510,0.33707222,87345.0,87344.0,0.30103]
[1765906843716,0.3123813,87345.0,87344.0,0.30103]
[1765906844905,0.3123813,87345.0,87341.0,0.00017173]
[1765906844906,0.3093817,87342.0,87341.0,0.00017173]
[1765906845106,0.3093845,87321.0,87320.0,0.3608]
[1765906845418,0.29793,87321.0,87320.0,0.30103]
[1765906845718,0.3093845,87321.0,87320.0,0.30103]
[1765906848213,0.3093845,87321.0,87320.0,0.30203]
[1765906849508,0.29793,87321.0,87320.0,0.30203]
[1765906849713,0.1514,87321.0,87320.0,0.38694]
[1765906849917,0.3093837,87327.0,87326.0,0.30103]
[1765906850118,0.00017173,87329.0,87328.0,0.38594]
[1765906850717,0.00017173,87329.0,87328.0,0.74674]
[1765906851218,0.00017173,87329.0,87328.0,0.38594]
[1765906852922,0.00017173,87329.0,87328.0,0.74674]
[1765906854231,0.00017173,87329.0,87328.0,0.74774]
[1765906855135,0.00017173,87329.0,87328.0,0.74674]
[1765906855433,0.00017173,87329.0,87328.0,0.74774]
[1765906856131,0.00017173,87329.0,87328.0,0.7591935]
[1765906856936,0.00017173,87329.0,87328.0,0.7581935]
[1765906857630,0.00017173,87329.0,87328.0,0.74674]
[1765906857828,0.01162513,87329.0,87328.0,0.7591935]
[1765906858422,0.30955513,87329.0,87328.0,0.74774]
[1765906858839,0.30955513,87329.0,87328.0,0.30203]
[1765906859229,0.30955513,87329.0,87328.0,0.14831]
[1765906859538,0.30955513,87329.0,87328.0,0.001]
[1765906859539,0.33425158,87329.0,87328.0,0.001]
[1765906860132,0.30955513,87329.0,87328.0,0.14831]
[1765906860437,0.30955513,87329.0,87328.0,0.14731]
[1765906862036,0.3093845,87321.0,87320.0,0.3124846]
[1765906862427,0.3093845,87321.0,87320.0,0.30103]
[1765906863339,0.3093845,87321.0,87320.0,0.30203]
[1765906864444,0.33424445,87321.0,87320.0,0.30203]
[1765906864638,0.69504445,87321.0,87320.0,0.001]
[1765906865531,0.69504445,87321.0,87312.0,0.00017173]
[1765906865532,0.2807455,87313.0,87312.0,0.00017173]
[1765906866240,0.66640914,87313.0,87312.0,0.00017173]
[1765906866446,0.6415455,87313.0,87312.0,0.27165173]
[1765906866648,0.6415455,87313.0,87312.0,0.27365173]
[1765906866842,0.6425455,87313.0,87312.0,0.27365173]
[1765906867447,0.6415455,87313.0,87312.0,0.27365173]
[1765906867648,0.6425455,87313.0,87312.0,0.27365173]
[1765906870144,0.3732555,87313.0,87312.0,0.35623173]
[1765906870336,0.001,87313.0,87312.0,0.35623173]
[1765906872046,0.27029,87313.0,87312.0,0.27365173]
[1765906872547,0.001,87313.0,87312.0,0.35623173]
[1765906874454,0.27029,87313.0,87312.0,0.27365173]
[1765906874660,0.27029,87313.0,87312.0,0.13723173]
[1765906875365,0.27029,87313.0,87312.0,0.00217173]
[1765906876164,0.27029,87313.0,87312.0,0.27365173]
[1765906877362,0.27029,87313.0,87312.0,0.35623173]
[1765906877966,0.27029,87313.0,87312.0,0.27365173]
[1765906878565,0.2807471,87301.0,87300.0,4e-05]
[1765906878764,0.66639738,87301.0,87300.0,0.1351]
[1765906878958,0.66639738,87301.0,87300.0,0.27152]
[1765906879157,0.66639738,87301.0,87300.0,0.1351]
[1765906879468,0.6415471,87301.0,87300.0,0.27152]
[1765906879769,0.2827471,87301.0,87300.0,0.3541]
[1765906880155,0.0134571,87301.0,87300.0,0.3541]
[1765906880362,0.002,87301.0,87300.0,0.3541]
[1765906881261,0.001,87301.0,87300.0,0.3541]
[1765906881463,0.003,87301.0,87300.0,0.3541]
[1765906882164,0.001,87301.0,87300.0,0.3541]
[1765906882370,0.2807464,87307.0,87306.0,0.27148]
[1765906883066,0.00017173,87309.0,87308.0,0.27148]
[1765906883254,0.26929,87308.0,87307.0,0.3608]
[1765906883657,0.26929,87308.0,87307.0,0.49586]
[1765906884170,0.26929,87308.0,87307.0,0.63228]
[1765906884570,0.2807471,87301.0,87300.0,0.27152]
[1765906884868,0.0124564,87307.0,87306.0,0.27148]
[1765906885067,0.001,87307.0,87306.0,0.27148]
[1765906885267,0.001,87307.0,87300.0,0.36084]
[1765906885268,0.0114562,87308.0,87307.0,0.2829363]
[1765906885469,0.0134562,87308.0,87307.0,0.6437363]
[1765906885771,0.003,87308.0,87307.0,0.6437363]
[1765906885968,0.003,87308.0,87307.0,0.63228]
[1765906886270,0.2807471,87301.0,87300.0,0.27152]
[1765906886672,0.2807471,87301.0,87300.0,4e-05]
[1765906887569,0.2807471,87301.0,87300.0,0.27152]
[1765906887775,0.0114571,87301.0,87300.0,0.3541]
[1765906887976,0.2807471,87301.0,87300.0,0.27152]
[1765906888772,0.2837471,87301.0,87300.0,0.27152]
[1765906889378,0.2817471,87301.0,87300.0,0.27152]
[1765906889567,0.2837471,87301.0,87300.0,0.27152]
[1765906889764,0.2837471,87301.0,87300.0,0.3541]
[1765906889969,0.2837471,87301.0,87300.0,0.1351]
[1765906890374,0.2837471,87301.0,87300.0,0.27152]
[1765906890578,0.0144571,87301.0,87300.0,0.3541]
[1765906891079,0.001,87301.0,87300.0,0.3541]
[1765906891281,0.002,87301.0,87300.0,0.3541]
[1765906891680,0.001,87301.0,87300.0,0.3541]
[1765906891982,0.002,87301.0,87300.0,0.3541]
[1765906892383,0.0114569,87303.0,87302.0,0.27148]
[1765906893682,0.2807469,87303.0,87302.0,0.27148]
[1765906894386,0.0114569,87303.0,87302.0,0.27148]
[1765906894584,0.13966783,87309.0,87308.0,0.25948]
[1765906894774,0.01162783,87309.0,87308.0,0.62028]
[1765906895784,0.01262783,87309.0,87308.0,0.62028]
[1765906896287,0.01162783,87309.0,87308.0,0.62028]
[1765906896987,0.01262783,87309.0,87308.0,0.62028]
[1765906897883,0.01162783,87309.0,87308.0,0.62028]
[1765906898388,0.00017173,87309.0,87308.0,0.62028]
[1765906899877,0.12821173,87309.0,87308.0,0.62028]
[1765906900092,0.00017173,87309.0,87308.0,0.62028]
[1765906905275,0.0114547,87319.0,87318.0,0.3252649]
[1765906905475,0.03639675,87319.0,87318.0,0.3252649]
[1765906905787,0.0114545,87322.0,87321.0,0.2709345]
[1765906905979,0.1394945,87322.0,87321.0,0.2709345]
[1765906906181,0.16443637,87322.0,87321.0,0.2709345]
[1765906906787,0.16443637,87322.0,87321.0,0.25948]
[1765906907378,0.2770854,87314.0,87313.0,0.25965173]
[1765906908989,0.0114554,87314.0,87313.0,0.25965173]
[1765906909283,0.0134545,87322.0,87318.0,0.08256]
[1765906909284,0.26763,87322.0,87318.0,0.08256]
[1765906909480,0.03639126,87321.0,87320.0,0.25948]
[1765906909887,0.16443126,87321.0,87320.0,0.25948]
[1765906910388,0.30202126,87321.0,87320.0,0.25948]
[1765906910787,0.277085,87317.0,87316.0,0.62028]
[1765906910981,0.30202201,87317.0,87316.0,0.25948]
[1765906911182,0.30202201,87317.0,87316.0,0.13179]
[1765906911487,0.2770854,87314.0,87313.0,0.25965173]
[1765906913589,0.2780854,87314.0,87313.0,0.25965173]
[1765906913795,0.2790854,87314.0,87313.0,0.25965173]
[1765906916785,0.2790854,87314.0,87313.0,0.27110723]
[1765906917994,0.2790854,87314.0,87313.0,0.25965173]
[1765906920295,0.30403558,87314.0,87313.0,0.25965173]
[1765906921184,0.30403558,87314.0,87313.0,0.13196173]
[1765906921389,0.30403558,87314.0,87313.0,0.00017173]
[1765906921582,0.30403558,87314.0,87313.0,0.13196173]
[1765906921791,0.30403558,87314.0,87313.0,0.00017173]
[1765906922393,0.30403558,87314.0,87313.0,0.13196173]
[1765906922581,0.30403558,87314.0,87313.0,0.25965173]
[1765906922986,0.02695018,87314.0,87313.0,0.25965173]
[1765906923898,0.02495018,87314.0,87313.0,0.25965173]
[1765906924090,0.02595018,87314.0,87313.0,0.25965173]
[1765906924692,0.15827018,87314.0,87313.0,0.25965173]
[1765906924894,0.28415018,87314.0,87313.0,0.25965173]
[1765906925495,0.28315018,87314.0,87313.0,0.25965173]
[1765906925792,0.28415018,87314.0,87313.0,0.25965173]
[1765906930401,0.02595018,87314.0,87313.0,0.25965173]
[1765906930707,0.28415018,87314.0,87313.0,0.25965173]
[1765906931507,0.02595018,87314.0,87313.0,0.25965173]
[1765906933306,0.28415018,87314.0,87313.0,0.25965173]
[1765906935304,0.28415018,87314.0,87313.0,0.00017173]
[1765906935508,0.28415018,87314.0,87313.0,0.24859173]
[1765906940899,0.28415018,87314.0,87313.0,0.00017173]
[1765906941109,0.29560558,87314.0,87313.0,0.12337173]
[1765906941612,0.29560558,87314.0,87313.0,0.24859173]
[1765906943705,0.29560558,87314.0,87313.0,0.00017173]
[1765906943914,0.29560558,87314.0,87313.0,0.24859173]
[1765906948814,0.29560558,87314.0,87313.0,0.00017173]
[1765906949017,0.29560558,87314.0,87313.0,0.24859173]
[1765906951520,0.29560558,87314.0,87313.0,0.00017173]
[1765906952618,0.29560558,87314.0,87313.0,0.12337173]
[1765906953218,0.29560558,87314.0,87313.0,0.24859173]
[1765906956418,0.29660558,87314.0,87313.0,0.24859173]
[1765906956919,0.29560558,87314.0,87313.0,0.24859173]
[1765906957116,0.29660558,87314.0,87313.0,0.24859173]
[1765906961919,0.29660558,87314.0,87300.0,0.06178629]
[1765906961920,0.2535371,87301.0,87300.0,0.06178629]
[1765906962111,0.27848728,87301.0,87300.0,0.23113]
[1765906963015,0.27848728,87301.0,87300.0,0.30214]
[1765906963211,0.02495018,87301.0,87300.0,0.30314]
[1765906963416,0.0114563,87307.0,87306.0,0.3135564]
[1765906963609,0.0114563,87307.0,87306.0,0.6743564]
[1765906963810,0.03654935,87307.0,87306.0,0.6743564]
[1765906964009,0.02509305,87307.0,87306.0,0.6743564]
[1765906964213,0.00017173,87309.0,87308.0,0.23109]
[1765906965621,0.00017173,87309.0,87308.0,0.23209]
[1765906966213,0.00017173,87309.0,87308.0,0.23109]
[1765906966422,0.3608,87339.0,87329.0,0.11551]
[1765906966423,0.2535333,87330.0,87329.0,0.11551]
[1765906966624,0.27861179,87330.0,87329.0,0.23109]
[1765906967522,0.2535342,87323.0,87322.0,0.59189]
[1765906967729,0.12223,87323.0,87322.0,0.59189]
[1765906967925,0.1336839,87326.0,87325.0,0.3021]
[1765906968121,0.15875402,87326.0,87325.0,0.3021]
[1765906968322,0.1336839,87326.0,87325.0,0.3021]
[1765906968826,0.1336835,87329.0,87328.0,0.23109]
[1765906969034,0.27859637,87329.0,87328.0,0.23109]
[1765906970913,0.27959637,87329.0,87328.0,0.23109]
[1765906971115,0.15974637,87329.0,87328.0,0.23109]
[1765906971925,0.16074637,87329.0,87328.0,0.23109]
[1765906972332,0.1356835,87329.0,87328.0,0.23109]
[1765906972522,0.1336835,87329.0,87328.0,0.23109]
[1765906972718,0.12223,87329.0,87328.0,0.23109]
[1765906973334,0.24208,87329.0,87328.0,0.23109]
[1765906974330,0.24208,87329.0,87328.0,0.23209]
[1765906974525,0.24208,87329.0,87328.0,0.001]
[1765906974727,0.26711996,87329.0,87328.0,0.23209]
[1765906974927,0.24208,87329.0,87328.0,0.23209]
[1765906975129,0.26712275,87329.0,87328.0,0.23209]
[1765906975528,0.26712275,87329.0,87328.0,0.23109]
[1765906975731,0.26912275,87329.0,87328.0,0.23109]
[1765906975923,0.27112275,87329.0,87328.0,0.23109]
[1765906976124,0.27112275,87329.0,87321.0,0.00017173]
[1765906976125,0.2535343,87322.0,87321.0,0.23126173]
[1765906977435,0.2545343,87322.0,87321.0,0.23126173]
[1765906978440,0.2555343,87322.0,87321.0,0.23126173]
[1765906978734,0.2555343,87322.0,87321.0,0.11575173]
[1765906979038,0.2555343,87322.0,87321.0,0.23126173]
[1765906982137,0.12423,87322.0,87321.0,0.23126173]
[1765906982542,0.24408,87322.0,87321.0,0.23126173]
[1765906982929,0.12423,87322.0,87321.0,0.23126173]
[1765906983143,0.12323,87322.0,87321.0,0.23226173]
[1765906983440,0.001,87322.0,87321.0,0.23226173]
[1765906983938,0.001,87322.0,87321.0,0.23126173]
[1765906984830,0.2407832,87332.0,87331.0,0.21661]
[1765906988444,0.2407843,87322.0,87321.0,0.21678173]
[1765906988639,0.2407843,87322.0,87321.0,0.00017173]
[1765906989430,0.26565393,87322.0,87321.0,0.00017173]
[1765906990348,0.26765393,87322.0,87321.0,0.00017173]
[1765906990845,0.26865393,87322.0,87321.0,0.00017173]
[1765906991140,0.26965393,87322.0,87321.0,0.00017173]
[1765906993737,0.26765393,87322.0,87321.0,0.00017173]
[1765906993936,0.26965393,87322.0,87321.0,0.00017173]
[1765906995541,0.26765393,87322.0,87321.0,0.00017173]
[1765906995734,0.26965393,87322.0,87321.0,0.00017173]
[1765906996234,0.26765393,87322.0,87321.0,0.00017173]
[1765906996430,0.26965393,87322.0,87321.0,0.00017173]
[1765906996740,0.26965393,87322.0,87321.0,0.10880173]
[1765906997047,0.26965393,87322.0,87321.0,0.00017173]
[1765906999140,0.26765393,87322.0,87321.0,0.00017173]
[1765906999340,0.26965393,87322.0,87321.0,1.73e-06]
[1765907000049,0.26765393,87322.0,87321.0,1.73e-06]
[1765907000251,0.26965393,87322.0,87321.0,0.00100173]
[1765907000749,0.2407871,87301.0,87300.0,0.37415605]
[1765907000939,0.2407871,87301.0,87300.0,0.21665]
[1765907001341,0.2407871,87301.0,87300.0,0.28839]
[1765907003149,0.2407871,87301.0,87295.0,0.0114578]
[1765907003150,0.22933,87291.0,87290.0,0.06180732]
[1765907003448,0.2407904,87276.0,87275.0,0.21661]
[1765907004440,0.2998804,87276.0,87275.0,0.10863]
[1765907004647,0.2407926,87259.0,87258.0,0.00229207]
[1765907005752,0.2407943,87246.0,87245.0,0.3608]
[1765907006055,0.2407955,87237.0,87236.0,0.21661]
[1765907006353,0.240796,87233.0,87232.0,0.3608]
[1765907006562,0.240796,87233.0,87232.0,0.46943]
[1765907006859,0.2407968,87227.0,87226.0,0.21661]
[1765907007148,0.2357968,87227.0,87226.0,0.10863]
[1765907007354,0.22933,87219.0,87218.0,0.57970312]
[1765907008254,0.22933,87227.0,87226.0,0.21661]
[1765907008449,0.594,87231.0,87230.0,0.21661]
[1765907008450,0.11225,87231.0,87230.0,0.21661]
[1765907008656,0.22933,87231.0,87230.0,0.21661]
[1765907009148,0.001,87233.0,87232.0,0.28835]
[1765907009857,0.11242194,87235.0,87234.0,0.21661]
[1765907010354,0.22933,87227.0,87226.0,0.57741]
[1765907011053,0.22933,87227.0,87226.0,0.3608]
[1765907011551,0.22933,87227.0,87226.0,0.57741]
[1765907011849,0.11425,87233.0,87232.0,0.21661]
[1765907012055,0.11342194,87235.0,87234.0,0.21661]
[1765907012248,0.0114665,87230.0,87226.0,0.3608]
[1765907012447,0.22933,87227.0,87226.0,0.57741]
[1765907012647,0.2407959,87234.0,87233.0,0.21661]
[1765907012950,0.11242194,87235.0,87234.0,0.21661]
[1765907013151,0.22950194,87235.0,87234.0,0.21661]
[1765907013347,0.22933,87227.0,87226.0,0.3608]
[1765907013546,0.22933,87227.0,87226.0,0.46943]
[1765907013949,0.22933,87227.0,87226.0,0.57741]
[1765907014849,0.22933,87227.0,87226.0,0.3608]
[1765907015448,0.2197377,87220.0,87219.0,0.3608]
[1765907015654,0.20827,87220.0,87219.0,0.57448]
[1765907015852,0.20827,87220.0,87219.0,0.63627]
[1765907016754,0.21027,87220.0,87219.0,0.63627]
[1765907016956,0.21027,87220.0,87219.0,0.57448]
[1765907017550,0.002,87220.0,87219.0,0.63627]
[1765907021151,0.0114663,87231.0,87230.0,0.21368]
[1765907021352,0.2197363,87231.0,87230.0,0.21368]
[1765907022264,0.0114659,87234.0,87233.0,0.21368]
[1765907022464,0.36091265,87237.0,87234.0,0.21368]
[1765907022756,0.10388194,87235.0,87234.0,0.21368]
[1765907023061,0.20844194,87235.0,87234.0,0.21368]
[1765907023659,0.00017194,87235.0,87234.0,0.21368]
[1765907024258,0.20844194,87235.0,87234.0,0.21368]
[1765907024453,0.2197365,87229.0,87228.0,0.57448]
[1765907024859,0.0114677,87221.0,87220.0,0.46545]
[1765907025162,0.10371,87221.0,87220.0,0.57448]
[1765907025459,0.2197368,87228.0,87227.0,0.21368]
[1765907026067,0.2197368,87228.0,87227.0,0.57448]
[1765907026564,0.2197368,87228.0,87227.0,0.21368]
[1765907026770,0.20827,87221.0,87220.0,0.57448]
[1765907027469,0.20827,87221.0,87220.0,0.3608]
[1765907027657,0.20927,87221.0,87220.0,0.3608]
[1765907028254,0.2742,87219.0,87215.0,0.00010949]
[1765907028665,0.20827,87216.0,87215.0,0.00010949]
[1765907029660,0.20927,87216.0,87215.0,0.00010949]
[1765907030268,0.2197401,87202.0,87201.0,0.57448]
[1765907031166,0.2197401,87202.0,87201.0,0.3608]
[1765907031562,0.2197401,87202.0,87201.0,0.57448]
[1765907031759,0.2207401,87202.0,87201.0,0.3608]
[1765907032159,0.27408,87201.0,87192.0,0.3723945]
[1765907032355,0.20839123,87201.0,87200.0,0.77452]
[1765907032755,0.10383123,87201.0,87200.0,0.77452]
[1765907032967,0.00012123,87201.0,87200.0,0.77452]
[1765907033163,0.20939123,87201.0,87200.0,0.77452]
[1765907033968,0.24554123,87201.0,87200.0,0.20004]
[1765907034168,0.27077661,87201.0,87200.0,0.20004]
[1765907034576,0.27010661,87201.0,87200.0,0.20004]
[1765907034767,0.26910661,87201.0,87200.0,0.20004]
[1765907034975,0.23662661,87201.0,87200.0,0.41372]
[1765907035158,0.23462661,87201.0,87200.0,0.41372]
[1765907035359,0.23662661,87201.0,87200.0,0.41372]
[1765907035565,0.23862661,87201.0,87200.0,0.41372]
[1765907036776,0.03035661,87201.0,87200.0,0.41372]
[1765907038874,0.13406661,87201.0,87200.0,0.41372]
[1765907039074,0.03035661,87201.0,87200.0,0.41372]
[1765907040072,0.00017194,87210.0,87209.0,0.2251492]
[1765907040375,0.1151777,87221.0,87220.0,0.21368]
[1765907040780,0.2197377,87221.0,87220.0,0.21368]
[1765907041076,0.21982955,87221.0,87220.0,0.21368]
[1765907041868,0.22382955,87221.0,87220.0,0.21368]
[1765907042177,0.22582955,87221.0,87220.0,0.21368]
[1765907042370,0.22582955,87221.0,87219.0,0.06179]
[1765907042371,0.2197381,87217.0,87216.0,0.3608]
[1765907042576,0.2197387,87213.0,87212.0,0.00017194]
[1765907042973,0.20827,87213.0,87212.0,0.46562194]
[1765907043168,0.00209185,87221.0,87220.0,0.21368]
[1765907043470,0.00209185,87221.0,87220.0,0.57448]
[1765907043670,0.21084185,87221.0,87220.0,0.57448]
[1765907044271,0.1149987,87213.0,87212.0,0.57076194]
[1765907044478,0.2220387,87213.0,87212.0,0.20996194]
[1765907044975,0.1149987,87213.0,87212.0,0.20996194]
[1765907045181,0.011468,87219.0,87216.0,0.0114683]
[1765907045477,0.011468,87219.0,87218.0,0.20979]
[1765907045781,0.114998,87219.0,87218.0,0.20979]
[1765907045983,0.222038,87219.0,87218.0,0.20979]
[1765907046483,0.223038,87219.0,87218.0,0.20979]
[1765907046878,0.012468,87219.0,87218.0,0.20979]
[1765907047079,0.115998,87219.0,87218.0,0.20979]
[1765907047785,0.117998,87219.0,87218.0,0.20979]
[1765907047985,0.116998,87219.0,87218.0,0.20979]
[1765907049277,0.116998,87219.0,87218.0,0.221258]
[1765907049481,0.002,87219.0,87218.0,0.221258]
[1765907050589,0.002,87219.0,87218.0,0.20979]
[1765907053178,0.23747924,87219.0,87218.0,0.20979]
[1765907053374,0.23747924,87219.0,87218.0,0.221258]